bitfinex-derivatives/quotes_SOLF0:USTF0_20251125
["timestamp","ask_amount","ask_price","bid_price","bid_amount"]
[1764095361876,25.4,137.17,137.15,15.62064228]
[1764095362177,28.45,137.17,137.15,15.62064228]
[1764095362478,3.05,137.16,137.15,15.62064228]
[1764095363481,3.05,137.16,137.14,9.10373569]
[1764095363672,3.05,137.16,137.14,0.04879341]
[1764095364273,3.05,137.16,137.14,6.61509341]
[1764095364575,3.05,137.16,137.15,9.05494228]
[1764095365283,3.05,137.16,137.14,9.10373569]
[1764095366484,3.05,137.16,137.15,9.05494228]
[1764095367774,3.05,137.15,137.14,0.04879341]
[1764095368178,3.05,137.16,137.14,0.04879341]
[1764095373080,9.6155,137.16,137.14,0.04879341]
[1764095373284,3.05,137.15,137.14,0.04879341]
[1764095382491,9.6154,137.16,137.14,0.04879341]
[1764095382994,3.05,137.15,137.14,0.04879341]
[1764095383382,3.05,137.16,137.14,3.08879341]
[1764095387695,25.4,137.17,137.15,3.06]
[1764095388291,28.44,137.17,137.15,3.06]
[1764095388492,28.44,137.17,137.14,9.67509341]
[1764095388693,3.04,137.16,137.14,9.67509341]
[1764095389599,3.04,137.16,137.14,6.61509341]
[1764095389899,3.04,137.16,137.14,3.10879341]
[1764095391196,25.4,137.17,137.14,3.10879341]
[1764095391400,3.04,137.22,137.17,3.06]
[1764095391592,106.23769863,137.27,137.17,3.06]
[1764095391593,3.04,137.19,137.17,13.52450913]
[1764095391901,3.04,137.19,137.16,9.6251]
[1764095392096,3.04,137.19,137.16,23.14960913]
[1764095392605,3.08982818,137.19,137.16,23.1979329]
[1764095395212,0.04982818,137.19,137.17,9.6248]
[1764095395395,0.04982818,137.19,137.17,6.5648]
[1764095395596,0.04982818,137.19,137.18,3.06]
[1764095396502,0.04982818,137.19,137.18,16.58450913]
[1764095396807,0.04982818,137.19,137.18,3.06]
[1764095397003,0.04982818,137.19,137.18,16.58450913]
[1764095399902,0.04982818,137.19,137.18,23.14890913]
[1764095400212,22.86541167,137.2,137.19,3.08]
[1764095400411,3.1,137.28,137.24,3.08]
[1764095400603,3.1,137.28,137.25,12.14678021]
[1764095400604,25.3,137.27,137.25,12.14678021]
[1764095401205,25.35378141,137.27,137.25,9.6904266]
[1764095401803,25.35378141,137.27,137.25,18.75720681]
[1764095402207,28.45378141,137.27,137.25,18.75720681]
[1764095402410,28.45378141,137.27,137.25,0.0494266]
[1764095403106,25.35378141,137.27,137.25,9.6903266]
[1764095403907,25.35378141,137.27,137.26,3.08]
[1764095404108,25.35378141,137.27,137.26,12.14678021]
[1764095404400,25.35378141,137.27,137.26,3.08]
[1764095405310,3.1,137.26,137.25,0.0494266]
[1764095414123,25.35378141,137.27,137.25,3.1294266]
[1764095414420,28.45378141,137.27,137.25,3.1294266]
[1764095414822,28.45378141,137.27,137.25,9.6903266]
[1764095415217,3.1,137.26,137.25,0.0494266]
[1764095416725,25.35378141,137.27,137.25,3.1294266]
[1764095417612,25.35378141,137.27,137.26,9.6306]
[1764095419920,25.35378141,137.27,137.26,6.5606]
[1764095420319,2.98,137.26,137.25,0.0494266]
[1764095420916,25.35378141,137.27,137.25,3.1194266]
[1764095421215,2.98,137.26,137.25,0.0494266]
[1764095421417,2.98,137.25,137.19,3.07]
[1764095422525,3.0344977,137.23,137.21,6.61418188]
[1764095424418,3.0344977,137.23,137.21,0.05128188]
[1764095424822,0.0544977,137.23,137.21,3.12128188]
[1764095425326,0.0544977,137.23,137.22,5.74544502]
[1764095430423,0.0544977,137.23,137.22,3.07]
[1764095433228,0.0544977,137.23,137.21,12.3596269]
[1764095433828,3.0344977,137.23,137.21,6.61418188]
[1764095435632,3.0344977,137.23,137.22,6.5625]
[1764095441240,3.0344977,137.23,137.22,15.62928021]
[1764095441536,0.0544977,137.23,137.22,18.69928021]
[1764095441737,2.98,137.3,137.25,105.1278]
[1764095441940,2.67544502,137.34,137.25,105.1278]
[1764095441941,2.98,137.31,137.29,1.81377779]
[1764095442132,2.98,137.31,137.28,3.07]
[1764095442333,2.98,137.31,137.29,6.5589]
[1764095442541,28.26,137.32,137.29,12.13888896]
[1764095442740,2.98,137.31,137.29,0.05467019]
[1764095443140,2.98,137.31,137.29,9.12355915]
[1764095443342,2.98,137.31,137.29,6.61347019]
[1764095443530,25.32862486,137.32,137.29,3.12467019]
[1764095443741,28.30862486,137.32,137.29,12.19355915]
[1764095444828,25.32862486,137.32,137.31,9.6282]
[1764095445027,13.40612486,137.32,137.31,9.6282]
[1764095445232,2.98,137.35,137.32,3.07]
[1764095445534,2.98,137.35,137.33,6.5568]
[1764095445944,28.26,137.37,137.35,6.5561]
[1764095446246,28.30609183,137.37,137.35,6.60476648]
[1764095447242,28.30609183,137.37,137.35,0.04866648]
[1764095447446,3.17,137.36,137.35,0.04866648]
[1764095448345,25.32609183,137.37,137.35,0.04866648]
[1764095448553,25.32609183,137.37,137.35,6.60466648]
[1764095448743,3.17,137.36,137.35,0.04866648]
[1764095452150,4.63,137.36,137.27,3.03]
[1764095452345,3.17,137.34,137.27,3.03]
[1764095452654,3.17,137.34,137.29,6.559]
[1764095453153,3.17,137.32,137.3,6.60450699]
[1764095453654,3.22453882,137.33,137.3,3.07600699]
[1764095454450,3.22453882,137.33,137.31,6.558]
[1764095461762,0.05453882,137.33,137.32,2.94]
[1764095464566,3.20453882,137.33,137.31,6.558]
[1764095468263,3.20453882,137.33,137.31,9.498]
[1764095468462,3.20453882,137.33,137.31,6.558]
[1764095469568,0.05453882,137.33,137.32,2.94]
[1764095471662,0.05453882,137.33,137.31,9.498]
[1764095472060,0.05453882,137.33,137.32,2.94]
[1764095472264,3.20453882,137.33,137.31,6.558]
[1764095474361,3.20453882,137.33,137.32,6.5577]
[1764095476085,0.05453882,137.33,137.32,6.5577]
[1764095479571,0.05453882,137.33,137.32,9.7277]
[1764095486380,25.28,137.37,137.36,9.7258]
[1764095486971,25.28,137.37,137.36,6.5558]
[1764095487177,30.64799031,137.37,137.36,6.5558]
[1764095487382,25.28,137.37,137.36,6.5558]
[1764095488077,30.6480466,137.37,137.36,6.5558]
[1764095488385,25.28,137.37,137.36,6.5558]
[1764095494380,25.28,137.37,137.36,9.7258]
[1764095495894,25.28,137.37,137.36,6.5558]
[1764095497781,28.21,137.37,137.36,6.5558]
[1764095501179,2.98263986,137.38,137.37,6.5553]
[1764095502280,4.44263986,137.38,137.37,6.5553]
[1764095502582,2.93,137.37,137.35,0.05469267]
[1764095502780,5.35998669,137.36,137.35,0.05469267]
[1764095502980,8.28998669,137.36,137.35,0.05469267]
[1764095503175,8.28998669,137.36,137.35,1.86730011]
[1764095503382,8.28998669,137.36,137.32,6.5573]
[1764095503383,2.93,137.35,137.27,3.17]
[1764095503576,2.93,137.33,137.26,105.2241]
[1764095503881,2.93,137.31,137.3,6.5586]
[1764095504684,0.05388336,137.32,137.31,3.17]
[1764095508284,3.12,137.38,137.34,3.04]
[1764095508488,5.3589108,137.37,137.35,3.04]
[1764095508790,28.36,137.41,137.37,3.04]
[1764095509088,8.53005593,137.4,137.38,0.05596599]
[1764095509290,3.17124042,137.4,137.38,6.61086599]
[1764095509485,0.05124042,137.4,137.38,9.65086599]
[1764095509690,0.05124042,137.4,137.38,6.61086599]
[1764095509988,0.05124042,137.4,137.38,9.65086599]
[1764095515288,3.17124042,137.4,137.38,6.61086599]
[1764095518194,0.05124042,137.4,137.38,9.65086599]
[1764095520289,3.03,137.39,137.38,6.61086599]
[1764095520498,8.38151903,137.39,137.38,6.61086599]
[1764095520702,3.03,137.39,137.38,6.61086599]
[1764095521791,8.38405294,137.39,137.38,6.61086599]
[1764095522101,3.03,137.38,137.33,104.9881]
[1764095522294,8.38432057,137.37,137.34,2.99]
[1764095522494,8.61616198,137.4,137.36,2.99]
[1764095522692,5.35500995,137.39,137.36,2.99]
[1764095522895,28.27,137.41,137.38,2.99]
[1764095523090,5.35454224,137.4,137.38,3.03623757]
[1764095523399,28.32063026,137.41,137.38,3.03623757]
[1764095523900,5.35635906,137.4,137.38,3.03623757]
[1764095524103,28.32063026,137.41,137.38,3.03623757]
[1764095524393,28.32063026,137.41,137.39,6.5544]
[1764095524598,3.03,137.4,137.39,6.5544]
[1764095524797,8.38674887,137.4,137.39,6.5544]
[1764095525800,3.03,137.4,137.39,6.5544]
[1764095526494,8.38762241,137.4,137.39,6.5544]
[1764095527499,3.03,137.4,137.39,6.5544]
[1764095527695,3.03,137.4,137.38,0.04623757]
[1764095527903,8.38570249,137.39,137.38,0.04623757]
[1764095528304,13.97409199,137.39,137.38,0.04623757]
[1764095528498,3.03,137.38,137.3,115.1394]
[1764095528803,25.29063026,137.41,137.32,2.99]
[1764095528804,3.03,137.36,137.32,2.99]
[1764095529202,3.03,137.36,137.34,6.5567]
[1764095529805,3.07644353,137.36,137.34,6.60286787]
[1764095530404,3.07644353,137.36,137.34,0.04616787]
[1764095530595,3.03,137.34,137.29,2.99]
[1764095530797,3.03,137.32,137.29,2.99]
[1764095531199,3.03,137.32,137.3,6.5586]
[1764095531596,3.07666276,137.32,137.3,0.05233216]
[1764095531795,8.38469091,137.31,137.3,0.05233216]
[1764095532208,3.03,137.31,137.3,0.05233216]
[1764095532605,25.22,137.31,137.3,0.05233216]
[1764095533601,28.25,137.31,137.3,0.05233216]
[1764095537816,25.26666276,137.32,137.31,3.07]
[1764095538016,0.04666276,137.32,137.31,3.07]
[1764095540615,0.04666276,137.32,137.3,9.68073216]
[1764095541117,0.04666276,137.32,137.31,3.07]
[1764095541716,0.04666276,137.32,137.3,9.68073216]
[1764095541918,0.04666276,137.32,137.31,3.07]
[1764095548318,0.04666276,137.32,137.3,6.61073216]
[1764095548526,2.98666276,137.32,137.3,0.05233216]
[1764095551023,2.94,137.31,137.3,0.05233216]
[1764095552325,25.26666276,137.32,137.3,3.12233216]
[1764095553325,25.26666276,137.32,137.3,9.68093216]
[1764095553524,25.26666276,137.32,137.3,3.12233216]
[1764095554625,0.04666276,137.32,137.3,3.12233216]
[1764095555318,2.94,137.31,137.3,6.61103216]
[1764095555521,2.98666276,137.32,137.3,6.61103216]
[1764095556229,2.98666276,137.32,137.31,6.5582]
[1764095556535,0.04666276,137.32,137.31,6.5582]
[1764095556928,0.04666276,137.32,137.31,9.6282]
[1764095560024,2.98666276,137.32,137.3,0.05233216]
[1764095561340,2.98666276,137.32,137.3,6.61093216]
[1764095566443,0.04666276,137.32,137.31,9.6282]
[1764095573650,25.22,137.33,137.32,9.4977]
[1764095574041,22.78285851,137.33,137.32,9.4977]
[1764095581047,11.35325851,137.33,137.32,9.4977]
[1764095581252,0.05140425,137.34,137.33,9.4772]
[1764095582153,22.48,137.37,137.36,6.5558]
[1764095582348,33.44518747,137.37,137.36,6.5558]
[1764095582543,2.88,137.4,137.37,2.92]
[1764095582852,2.88,137.4,137.39,6.5544]
[1764095587261,2.88,137.4,137.38,0.05442033]
[1764095587963,2.88,137.4,137.38,6.60922033]
[1764095588360,25.24814676,137.41,137.39,2.92]
[1764095588667,5.5540025,137.4,137.38,0.05442033]
[1764095588858,2.88,137.39,137.38,0.05442033]
[1764095590358,28.10814676,137.41,137.38,2.97442033]
[1764095591364,28.10814676,137.41,137.38,9.52922033]
[1764095592965,2.88,137.4,137.38,0.05442033]
[1764095594577,28.10814676,137.41,137.38,2.97442033]
[1764095594875,2.88,137.4,137.38,0.05442033]
[1764095595775,2.88,137.39,137.32,2.92]
[1764095595980,2.88,137.39,137.38,1.80627149]
[1764095596275,2.88,137.38,137.34,2.92]
[1764095596874,0.04995493,137.37,137.35,2.97341073]
[1764095602285,0.04995493,137.37,137.35,9.52951073]
[1764095602476,0.04995493,137.37,137.36,2.97]
[1764095602975,0.04995493,137.37,137.35,6.60951073]
[1764095602976,0.04995493,137.37,137.35,3.02341073]
[1764095603577,0.04995493,137.37,137.36,2.97]
[1764095610188,0.04995493,137.37,137.36,9.5258]
[1764095613679,0.04995493,137.37,137.36,2.97]
[1764095613889,0.04995493,137.37,137.35,0.05341073]
[1764095613890,3.04995493,137.37,137.35,0.05341073]
[1764095615491,8.25951713,137.36,137.35,0.05341073]
[1764095617189,3.0,137.35,137.3,9.5284]
[1764095617389,3.0,137.33,137.27,2.97]
[1764095617787,3.0,137.33,137.27,9.5299]
[1764095618192,3.0,137.33,137.27,2.97]
[1764095618399,3.0,137.33,137.28,9.5295]
[1764095618599,3.05497119,137.31,137.29,0.04899873]
[1764095618788,0.05497119,137.31,137.29,3.01899873]
[1764095623602,3.05497119,137.31,137.29,3.01899873]
[1764095626798,0.05497119,137.31,137.29,3.01899873]
[1764095627904,3.07497119,137.31,137.29,3.01899873]
[1764095629903,3.07497119,137.31,137.29,0.04899873]
[1764095630503,9.63337119,137.31,137.29,0.04899873]
[1764095630709,3.02,137.3,137.25,3.0]
[1764095631108,6.61327119,137.31,137.25,3.0]
[1764095631301,0.05497119,137.31,137.25,3.0]
[1764095631708,0.05497119,137.31,137.29,3.0]
[1764095632609,0.05497119,137.31,137.3,3.0]
[1764095633809,108.74088463,137.39,137.3,3.0]
[1764095633810,3.02,137.36,137.3,3.0]
[1764095634004,3.02,137.36,137.32,3.0]
[1764095634400,3.02,137.36,137.33,3.0]
[1764095635098,3.07086172,137.36,137.33,3.04616589]
[1764095636212,3.07086172,137.36,137.33,0.04616589]
[1764095637208,0.05086172,137.36,137.34,3.0]
[1764095638306,0.05086172,137.36,137.34,9.5567]
[1764095640813,0.05086172,137.36,137.35,2.91]
[1764095642821,3.02086172,137.36,137.33,2.95616589]
[1764095643118,2.97,137.34,137.28,2.91]
[1764095643823,2.97,137.32,137.28,2.91]
[1764095644224,3.01979598,137.31,137.29,0.05057912]
[1764095644712,3.01979598,137.31,137.29,6.60967912]
[1764095646517,3.01979598,137.31,137.29,0.05057912]
[1764095646718,28.13,137.3,137.29,0.05057912]
[1764095647816,2.97,137.29,137.25,2.91]
[1764095648415,2.97,137.29,137.26,6.5605]
[1764095648616,25.16,137.3,137.22,102.0811]
[1764095648617,2.97,137.27,137.22,2.91]
[1764095648812,32.3032753,137.3,137.25,2.91]
[1764095649015,3.02285312,137.29,137.26,0.04702838]
[1764095649322,3.02285312,137.29,137.26,2.95702838]
[1764095649825,0.05285312,137.29,137.27,2.91]
[1764095651424,0.05285312,137.29,137.28,2.91]
[1764095653129,0.05285312,137.29,137.27,6.5599]
[1764095653519,0.05285312,137.29,137.27,9.4699]
[1764095654128,0.05285312,137.29,137.28,2.91]
[1764095660638,0.05285312,137.29,137.28,5.58291566]
[1764095661340,0.05285312,137.29,137.28,2.91]
[1764095663839,3.20285312,137.29,137.26,2.71994404]
[1764095664046,3.20285312,137.29,137.26,3.01702838]
[1764095666146,3.20285312,137.29,137.26,9.57752838]
[1764095666446,3.20285312,137.29,137.27,2.97]
[1764095668343,3.20285312,137.29,137.27,9.5299]
[1764095668646,0.05285312,137.29,137.28,2.97]
[1764095669141,0.05285312,137.29,137.27,6.5599]
[1764095669342,3.20285312,137.29,137.27,6.5599]
[1764095670140,3.20285312,137.29,137.26,0.04702838]
[1764095671435,3.20285312,137.29,137.28,1.81323191]
[1764095671641,3.15,137.28,137.23,2.97]
[1764095671832,3.15,137.28,137.23,9.532]
[1764095672241,3.15,137.28,137.23,2.97]
[1764095672739,3.15,137.28,137.24,0.04765387]
[1764095672949,3.15,137.27,137.24,0.04765387]
[1764095674647,3.20285312,137.29,137.24,3.01765387]
[1764095675040,3.15,137.27,137.24,0.04765387]
[1764095676246,3.15,137.27,137.24,3.01765387]
[1764095676836,25.16,137.26,137.24,3.01765387]
[1764095677040,25.16,137.26,137.24,0.04765387]
[1764095677041,28.31,137.26,137.24,0.04765387]
[1764095678546,25.16,137.26,137.24,3.01765387]
[1764095678850,3.15,137.25,137.24,0.04765387]
[1764095679247,28.36101813,137.26,137.24,0.04765387]
[1764095679639,28.36101813,137.26,137.24,3.01765387]
[1764095681548,0.05101813,137.26,137.24,3.01765387]
[1764095682550,0.05101813,137.26,137.25,2.97]
[1764095687256,3.14101813,137.26,137.24,0.04765387]
[1764095689358,0.05101813,137.26,137.24,3.12765387]
[1764095689559,3.14101813,137.26,137.24,3.12765387]
[1764095690059,0.05101813,137.26,137.24,3.12765387]
[1764095691458,3.09,137.25,137.24,0.04765387]
[1764095692962,3.14101813,137.26,137.24,0.04765387]
[1764095693164,6.5611,137.25,137.24,3.12765387]
[1764095693459,0.05101813,137.26,137.24,3.12765387]
[1764095694163,9.70161813,137.26,137.24,0.04765387]
[1764095695665,9.70161813,137.26,137.24,3.12765387]
[1764095697056,6.5611,137.25,137.24,0.04765387]
[1764095697257,3.09,137.25,137.24,0.04765387]
[1764095698567,3.14101813,137.26,137.24,0.04765387]
[1764095701266,9.70171813,137.26,137.24,0.04765387]
[1764095701576,3.15,137.25,137.24,0.04765387]
[1764095702368,9.7111,137.25,137.24,0.04765387]
[1764095703270,3.15,137.24,137.2,3.1]
[1764095703472,28.29,137.23,137.2,3.1]
[1764095704174,28.34303153,137.23,137.2,3.15200611]
[1764095704567,9.7125,137.22,137.2,0.05200611]
[1764095704870,3.15,137.21,137.2,0.05200611]
[1764095706274,3.15,137.2,137.17,3.1]
[1764095706473,3.15,137.19,137.14,3.1]
[1764095706675,3.15,137.18,137.14,3.1]
[1764095706883,28.29,137.17,137.14,3.1]
[1764095707178,28.33940039,137.17,137.14,3.15188028]
[1764095707975,25.18940039,137.17,137.14,3.15188028]
[1764095709284,3.15,137.15,137.14,0.05188028]
[1764095710879,28.29,137.15,137.14,0.05188028]
[1764095714484,28.29,137.15,137.1,3.1]
[1764095714485,3.15,137.14,137.1,3.1]
[1764095715483,0.0461638,137.13,137.12,3.1]
[1764095716079,3.1961638,137.13,137.11,0.05129086]
[1764095716386,3.1961638,137.13,137.11,3.15129086]
[1764095716879,0.0461638,137.13,137.11,3.15129086]
[1764095717081,25.1861638,137.13,137.11,3.15129086]
[1764095717587,25.1861638,137.13,137.12,3.14]
[1764095719684,0.0461638,137.13,137.12,3.14]
[1764095721084,0.0461638,137.13,137.12,9.7073]
[1764095721975,2.9461638,137.13,137.11,3.19129086]
[1764095722388,0.0461638,137.13,137.11,3.19129086]
[1764095722789,2.9461638,137.13,137.11,0.05129086]
[1764095723287,2.9461638,137.13,137.05,3.14]
[1764095723581,2.9461638,137.13,137.02,102.2302]
[1764095723582,2.9,137.12,137.02,3.14]
[1764095723987,2.9,137.12,137.05,6.5706]
[1764095724187,0.04719539,137.1,137.05,6.5706]
[1764095724385,2.9,137.09,137.05,6.5706]
[1764095724587,28.04,137.08,137.05,6.5706]
[1764095724791,28.04,137.08,137.05,9.7106]
[1764095725290,28.04,137.09,137.06,3.14]
[1764095725586,25.18939664,137.09,137.06,3.14]
[1764095725982,25.18939664,137.09,137.07,6.5696]
[1764095726183,0.04939664,137.09,137.08,3.14]
[1764095726387,15.46,137.12,137.09,3.14]
[1764095726889,15.46,137.12,137.1,6.5682]
[1764095727492,15.50785913,137.12,137.1,6.61579528]
[1764095727875,2.9,137.11,137.1,0.04759528]
[1764095728776,0.04785913,137.12,137.1,3.18759528]
[1764095729980,2.94785913,137.12,137.1,0.04759528]
[1764095737185,2.94785913,137.12,137.04,3.14]
[1764095737393,2.9,137.12,137.04,3.14]
[1764095737984,2.9,137.12,137.04,9.7106]
[1764095738190,2.94637239,137.09,137.05,3.14]
[1764095739092,0.04637239,137.09,137.06,3.14]
[1764095740380,2.9,137.16,137.09,3.14]
[1764095740586,2.9,137.16,137.15,1.80319965]
[1764095740780,2.9,137.16,137.12,3.14]
[1764095741292,14.12,137.17,137.12,9.7073]
[1764095741492,0.04781523,137.16,137.13,3.19561619]
[1764095744591,10.74935648,137.23,137.15,3.14]
[1764095744592,13.63694932,137.21,137.15,3.14]
[1764095744898,2.9,137.21,137.15,3.14]
[1764095745704,0.05471106,137.19,137.17,0.05337152]
[1764095745999,2.95471106,137.19,137.17,0.05337152]
[1764095746196,2.95471106,137.19,137.1,3.14]
[1764095746397,2.9,137.19,137.1,3.14]
[1764095747201,3.05211789,137.16,137.13,0.05464534]
[1764095750499,3.05211789,137.16,137.13,3.06464534]
[1764095750801,0.05211789,137.16,137.13,3.06464534]
[1764095751105,3.05211789,137.16,137.13,3.06464534]
[1764095751305,3.05211789,137.16,137.13,9.63144534]
[1764095751508,3.05211789,137.16,137.13,3.06464534]
[1764095751706,0.05211789,137.16,137.13,3.06464534]
[1764095752402,3.05211789,137.16,137.13,3.06464534]
[1764095753406,3.05211789,137.16,137.14,6.5663]
[1764095753800,0.05211789,137.16,137.15,3.01]
[1764095756215,0.05211789,137.16,137.15,9.5758]
[1764095757103,0.05211789,137.16,137.15,6.5658]
[1764095757304,0.05211789,137.16,137.14,4.18695648]
[1764095757305,3.05211789,137.16,137.14,3.01]
[1764095757706,0.05211789,137.16,137.13,3.06464534]
[1764095758407,0.05211789,137.16,137.14,9.5762]
[1764095759212,0.05211789,137.16,137.15,6.5658]
[1764095759707,0.05211789,137.16,137.14,9.5763]
[1764095759912,0.05211789,137.16,137.15,2.94]
[1764095761217,0.05211789,137.16,137.15,9.5058]
[1764095765508,0.05211789,137.16,137.13,0.05464534]
[1764095765509,4.44211789,137.16,137.13,0.05464534]
[1764095765808,8.14631659,137.15,137.07,2.94]
[1764095766011,28.05,137.15,137.08,2.94]
[1764095766408,28.05,137.15,137.1,9.5082]
[1764095766409,2.93,137.14,137.1,9.5082]
[1764095766609,0.0496115,137.13,137.1,9.5082]
[1764095766812,2.93,137.11,137.07,2.94]
[1764095767114,2.93,137.11,137.06,9.5098]
[1764095767317,2.97999403,137.1,137.06,9.5098]
[1764095768315,2.97999403,137.1,137.03,290.06877541]
[1764095768316,2.97999403,137.1,137.07,9.5096]
[1764095769017,0.04999403,137.1,137.08,9.5091]
[1764095769719,2.97999403,137.1,137.08,6.5691]
[1764095770820,2.97999403,137.1,137.05,2.94]
[1764095770821,0.04999403,137.1,137.07,2.94]
[1764095771121,2.97999403,137.1,137.07,2.94]
[1764095772120,2.97999403,137.1,137.08,6.5692]
[1764095773419,2.97999403,137.1,137.03,290.06877541]
[1764095773420,2.97999403,137.1,137.06,9.5098]
[1764095774221,2.97999403,137.1,137.07,2.94]
[1764095774425,28.09999403,137.1,137.07,2.94]
[1764095776322,28.09999403,137.1,137.07,9.5095]
[1764095777219,28.09999403,137.1,137.05,9.6003]
[1764095777220,3.01,137.09,137.05,9.6003]
[1764095777520,3.01,137.09,137.06,3.03]
[1764095778417,3.01,137.09,137.03,285.88181893]
[1764095778418,3.01,137.09,137.04,3.03]
[1764095779217,3.01,137.09,137.01,3.03]
[1764095779413,3.05601427,137.06,137.01,3.03]
[1764095779717,0.04601427,137.06,137.05,3.03]
[1764095781211,0.04601427,137.06,137.05,9.6006]
[1764095781721,0.04601427,137.06,137.03,3.03]
[1764095781722,3.05601427,137.06,137.03,3.03]
[1764095782121,3.05601427,137.06,137.0,3.03]
[1764095783423,3.05601427,137.06,137.02,6.572]
[1764095783824,3.05601427,137.06,137.02,9.602]
[1764095785930,3.05601427,137.06,137.03,9.6015]
[1764095786829,3.05601427,137.06,137.02,3.03]
[1764095787514,0.04601427,137.06,137.04,3.03]
[1764095788526,0.04601427,137.06,137.04,9.6011]
[1764095789220,25.18601427,137.06,137.04,9.6011]
[1764095789629,28.19601427,137.06,137.04,3.03]
[1764095789932,3.01,137.05,137.02,6.5716]
[1764095790127,3.01,137.05,137.02,9.6016]
[1764095790333,3.01,137.05,137.03,9.6016]
[1764095791630,3.01,137.05,137.03,3.03]
[1764095792433,3.01,137.05,137.01,6.5721]
[1764095792634,3.01,137.05,137.02,3.03]
[1764095793134,3.01,137.05,137.01,9.6021]
[1764095793526,3.01,137.05,137.02,9.6019]
[1764095793721,0.04601427,137.06,137.04,3.03]
[1764095794837,0.04601427,137.06,137.05,9.6006]
[1764095795436,0.04601427,137.06,137.05,12.28448597]
[1764095795647,3.01,137.13,137.06,3.03]
[1764095795940,3.01,137.13,137.09,5.71388597]
[1764095796133,3.01,137.13,137.1,3.03]
[1764095796842,3.0639047,137.13,137.1,3.07818755]
[1764095799040,3.0639047,137.13,137.1,0.04818755]
[1764095799432,3.0639047,137.13,137.12,1.80540956]
[1764095800138,3.0639047,137.13,137.1,0.04818755]
[1764095800338,3.0639047,137.13,137.1,3.07818755]
[1764095803746,3.0639047,137.13,137.1,9.64638755]
[1764095804757,3.0639047,137.13,137.1,0.04818755]
[1764095805642,1.57,137.11,137.04,3.03]
[1764095805846,25.12,137.1,137.06,3.03]
[1764095806046,25.12,137.1,137.09,3.03]
[1764095808251,24.42567302,137.1,137.09,4.49]
[1764095808443,24.42567302,137.1,137.09,3.03]
[1764095808954,24.42567302,137.1,137.08,6.5691]
[1764095809255,24.42567302,137.1,137.08,9.6591]
[1764095810754,24.42567302,137.1,137.09,3.09]
[1764095811564,24.42567302,137.1,137.08,9.6591]
[1764095812562,25.99567302,137.1,137.06,3.09]
[1764095814364,25.99567302,137.1,137.08,6.5692]
[1764095816464,24.42567302,137.1,137.08,9.6592]
[1764095816664,24.42567302,137.1,137.09,6.5687]
[1764095819367,24.42567302,137.1,137.09,9.6587]
[1764095820970,0.05348467,137.11,137.1,9.6582]
[1764095821468,1.62348467,137.11,137.1,6.5682]
[1764095821664,1.62348467,137.11,137.08,6.5689]
[1764095821865,1.62348467,137.11,137.06,3.09]
[1764095822976,0.05348467,137.11,137.1,9.6582]
[1764095824260,0.05348467,137.11,137.1,6.5682]
[1764095824676,1.62348467,137.11,137.09,6.5687]
[1764095824875,1.62348467,137.11,137.09,9.6587]
[1764095825065,0.05348467,137.11,137.09,3.09]
[1764095825270,0.05348467,137.11,137.1,6.5682]
[1764095825667,0.05348467,137.11,137.1,9.6582]
[1764095825872,0.05348467,137.11,137.1,6.5682]
[1764095826273,1.62348467,137.11,137.08,3.09]
[1764095826976,1.62348467,137.11,137.08,9.6592]
[1764095827378,1.62348467,137.11,137.08,3.09]
[1764095828875,1.62348467,137.11,137.05,5.77388597]
[1764095829075,1.62348467,137.11,137.06,3.05]
[1764095830166,1.57,137.08,137.01,3.05]
[1764095830371,1.57,137.06,137.01,3.05]
[1764095830581,26.69,137.06,137.01,3.05]
[1764095830975,26.69,137.06,137.03,9.6216]
[1764095831176,26.69,137.06,137.03,3.05]
[1764095833180,1.57,137.05,137.03,3.05]